[Event "56th Biel Festival MTO 2023"]
[White "Zhang,Lanlin"]
[Black "Chasin,Nico"]
[Site "Biel"]
[Round "1.20"]
[Annotator "ChessBase"]
[Result "0-1"]
[Date "2023.07.18"]
[WhiteElo "2194"]
[BlackElo "2455"]
[PlyCount "126"]
[TimeControl "60"]

1. e4 {[%emt 0:0:0]} c5 {[%emt 0:0:0]} 2. Nf3 {[%emt 0:0:0]} e6 {[%emt 0:0:0]} 3. d4 {[%emt 0:0:0]} cxd4 {[%emt 0:0:0]} 4. Nxd4 {[%emt 0:0:0]} Nc6 {[%emt 0:0:0]} 5. Nc3 {[%emt 0:0:0]} Qc7 {[%emt 0:0:0]} 6. Be3 {[%emt 0:0:0]} a6 {[%emt 0:0:0]} 7. g4 {[%emt 0:0:36]} b5 {[%emt 0:0:0]} 8. Nxc6 {[%emt 0:11:28]} Qxc6 {[%emt 0:0:0]} 9. a3 {[%emt 0:11:28]} Bb7 {[%emt 0:0:2]} 10. Qd4 {[%emt 0:21:39]} Nf6 {[%emt 0:10:7]} 11. f3 {[%emt 0:2:19]} Rc8 {[%emt 0:0:25]} 12. Be2 {[%emt 0:0:10]} Bc5 {[%emt 0:1:3]} 13. Qd3 {[%emt 0:7:55]} d5 {[%emt 0:0:31]} 14. exd5 {[%emt 0:0:30]} Nxd5 {[%emt 0:0:30]} 15. Nxd5 {[%emt 0:0:30]} Qxd5 {[%emt 0:0:30]} 16. Qxd5 {[%emt 0:0:30]} Bxd5 {[%emt 0:0:30]} 17. Bxc5 {[%emt 0:0:30]} Rxc5 {[%emt 0:0:30]} 18. O-O-O {[%emt 0:0:30]} Ke7 {[%emt 0:0:30]} 19. Rhf1 {[%emt 0:0:30]} h5 {[%emt 0:0:30]} 20. gxh5 {[%emt 0:0:30]} Rxh5 {[%emt 0:0:30]} 21. Rf2 {[%emt 0:0:30]} Rh4 {[%emt 0:0:30]} 22. Kd2 {[%emt 0:0:30]} Bc6 {[%emt 0:1:29]} 23. Rg1 {[%emt 0:0:35]} Rd5+ {[%emt 0:8:15]} 24. Bd3 {[%emt 0:11:37]} Kf6 {[%emt 0:5:44]} 25. Rg4 {[%emt 0:2:29]} Rh3 {[%emt 0:1:2]} 26. Rg3 {[%emt 0:1:51]} Rh8 {[%emt 0:1:35]} 27. Ke3 {[%emt 0:4:48]} Rdh5 {[%emt 0:12:34]} 28. Rgg2 {[%emt 0:1:25]} Rh3 {[%emt 0:0:52]} 29. c4 {[%emt 0:0:40]} bxc4 {[%emt 0:7:9]} 30. Bxc4 {[%emt 0:0:6]} a5 {[%emt 0:0:3]} 31. Bd3 {[%emt 0:4:14]} R8h4 {[%emt 0:0:16]} 32. Kd2 {[%emt 0:6:7]} g6 {[%emt 0:11:24]} 33. Be2 {[%emt 0:2:52]} e5 {[%emt 0:1:17]} 34. Ke1 {[%emt 0:6:18]} Kf5 {[%emt 0:7:14]} 35. Kf1 {[%emt 0:2:18]} Kf4 {[%emt 0:1:2]} 36. Rg4+ {[%emt 0:1:14]} Ke3 {[%emt 0:1:34]} 37. Kg1 {[%emt 0:0:7]} Bd7 {[%emt 0:12:37]} 38. Rxh4 {[%emt 0:2:7]} Rxh4 {[%emt 0:0:31]} 39. Bf1 {[%emt 0:0:20]} f6 {[%emt 0:0:25]} 40. Re2+ {[%emt 0:0:0]} Kxf3 {[%emt 0:0:0]} 41. Rf2+ {[%emt 0:0:0]} Ke3 {[%emt 0:0:0]} 42. Rxf6 {[%emt 0:0:0]} Bf5 {[%emt 0:0:0]} 43. h3 {[%emt 0:0:0]} Bxh3 {[%emt 0:0:0]} 44. Bxh3 {[%emt 0:0:0]} Rxh3 {[%emt 0:0:0]} 45. Rxg6 {[%emt 0:4:29]} e4 {[%emt 0:0:0]} 46. b4 {[%emt 0:2:20]} a4 {[%emt 0:0:13]} 47. b5 {[%emt 0:2:2]} Kf4 {[%emt 0:12:39]} 48. b6 {[%emt 0:11:12]} Rxa3 {[%emt 0:1:17]} 49. b7 {[%emt 0:0:48]} Rb3 {[%emt 0:0:26]} 50. Rf6+ {[%emt 0:7:44]} Ke3 {[%emt 0:1:8]} 51. Ra6 {[%emt 0:0:13]} Rxb7 {[%emt 0:3:11]} 52. Rxa4 {[%emt 0:0:6]} Kf3 {[%emt 0:0:7]} 53. Ra8 {[%emt 0:2:56]} e3 {[%emt 0:1:58]} 54. Rf8+ {[%emt 0:0:28]} Ke2 {[%emt 0:0:6]} 55. Ra8 {[%emt 0:0:10]} Rg7+ {[%emt 0:0:14]} 56. Kh2 {[%emt 0:0:5]} Kf2 {[%emt 0:0:16]} 57. Rf8+ {[%emt 0:0:5]} Ke1 {[%emt 0:0:12]} 58. Rd8 {[%emt 0:0:4]} Rg5 {[%emt 0:0:10]} 59. Rd7 {[%emt 0:0:33]} e2 {[%emt 0:0:14]} 60. Rd8 {[%emt 0:0:0]} Kf2 {[%emt 0:0:0]} 61. Rf8+ {[%emt 0:0:0]} Ke3 {[%emt 0:0:0]} 62. Re8+ {[%emt 0:0:0]} Kf3 {[%emt 0:0:0]} 63. Re7 {[%emt 0:0:0]} Rg4 {[%emt 0:0:0]} 0-1

[Event "56th Biel Festival MTO 2023"]
[White "Muthaiah AL"]
[Black "Coles,Ruben"]
[Site "Biel"]
[Round "1.21"]
[Annotator "ChessBase"]
[Result "1/2-1/2"]
[Date "2023.07.18"]
[WhiteElo "2445"]
[BlackElo "2167"]
[PlyCount "90"]
[TimeControl "60"]

1. d4 {[%emt 0:0:0]} d5 {[%emt 0:0:0]} 2. c4 {[%emt 0:0:0]} e6 {[%emt 0:0:0]} 3. Nc3 {[%emt 0:0:0]} Nf6 {[%emt 0:0:0]} 4. Bg5 {[%emt 0:0:0]} dxc4 {[%emt 0:0:0]} 5. e3 {[%emt 0:0:0]} c5 {[%emt 0:0:0]} 6. Bxc4 {[%emt 0:3:42]} cxd4 {[%emt 0:0:0]} 7. exd4 {[%emt 0:0:56]} Be7 {[%emt 0:4:46]} 8. Nf3 {[%emt 0:0:28]} O-O {[%emt 0:1:50]} 9. O-O {[%emt 0:6:40]} a6 {[%emt 0:4:24]} 10. Qe2 {[%emt 0:15:24]} h6 {[%emt 0:22:34]} 11. Bh4 {[%emt 0:3:11]} b5 {[%emt 0:4:5]} 12. Bb3 {[%emt 0:12:46]} Bb7 {[%emt 0:3:52]} 13. Rad1 {[%emt 0:7:18]} Nbd7 {[%emt 0:14:42]} 14. Ne5 {[%emt 0:8:59]} Nb6 {[%emt 0:8:19]} 15. f4 {[%emt 0:4:42]} b4 {[%emt 0:9:16]} 16. Na4 {[%emt 0:2:31]} Nxa4 {[%emt 0:4:32]} 17. Bxa4 {[%emt 0:0:12]} Nd5 {[%emt 0:1:25]} 18. Bg3 {[%emt 0:3:45]} Qa5 {[%emt 0:4:56]} 19. Bb3 {[%emt 0:2:19]} Rad8 {[%emt 0:3:27]} 20. f5 {[%emt 0:2:25]} exf5 {[%emt 0:1:38]} 21. Rxf5 {[%emt 0:0:25]} Bg5 {[%emt 0:5:10]} 22. h4 {[%emt 0:7:42]} Bf6 {[%emt 0:3:39]} 23. Ng4 {[%emt 0:13:37]} Qb6 {[%emt 0:2:46]} 24. Bxd5 {[%emt 0:0:32]} Rxd5 {[%emt 0:0:35]} 25. Nxf6+ {[%emt 0:0:19]} gxf6 {[%emt 0:0:4]} 26. Qg4+ {[%emt 0:1:22]} Kh8 {[%emt 0:0:15]} 27. Rh5 {[%emt 0:2:39]} Rxh5 {[%emt 0:0:58]} 28. Qxh5 {[%emt 0:0:2]} Kg7 {[%emt 0:0:43]} 29. Bf4 {[%emt 0:1:33]} Rh8 {[%emt 0:0:24]} 30. Rd3 {[%emt 0:0:45]} Be4 {[%emt 0:0:26]} 31. Qg4+ {[%emt 0:0:19]} Kf8 {[%emt 0:0:14]} 32. Bxh6+ {[%emt 0:0:38]} Rxh6 {[%emt 0:0:19]} 33. Qxe4 {[%emt 0:0:2]} Qc7 {[%emt 0:0:52]} 34. d5 {[%emt 0:0:43]} Qc5+ {[%emt 0:0:18]} 35. Qd4 {[%emt 0:1:8]} Qc1+ {[%emt 0:0:37]} 36. Rd1 {[%emt 0:0:29]} Rxh4 {[%emt 0:1:24]} 37. Qxb4+ {[%emt 0:1:27]} Rxb4 {[%emt 0:0:30]} 38. Rxc1 {[%emt 0:0:30]} Rxb2 {[%emt 0:0:30]} 39. d6 {[%emt 0:0:30]} Ke8 {[%emt 0:0:30]} 40. Rc7 {[%emt 0:0:30]} Rxa2 {[%emt 0:0:30]} 41. Re7+ {[%emt 0:30:30]} Kf8 {[%emt 0:30:30]} 42. Ra7 {[%emt 0:0:30]} Rd2 {[%emt 0:0:30]} 43. Rxa6 {[%emt 0:0:30]} Ke8 {[%emt 0:0:30]} 44. Ra8+ {[%emt 0:0:30]} Kd7 {[%emt 0:0:30]} 45. Rf8 {[%emt 0:0:30]} Rxd6 {[%emt 0:0:30]} 1/2-1/2

[Event "56th Biel Festival MTO 2023"]
[White "Adocchio,Giampiero"]
[Black "Huang,Renjie"]
[Site "Biel"]
[Round "1.22"]
[Annotator "ChessBase"]
[Result "0-1"]
[Date "2023.07.18"]
[WhiteElo "2165"]
[BlackElo "2445"]
[PlyCount "120"]
[TimeControl "60"]

1. d4 {[%emt 0:0:0]} Nf6 {[%emt 0:0:0]} 2. c4 {[%emt 0:0:0]} e6 {[%emt 0:0:0]} 3. Nc3 {[%emt 0:0:0]} d5 {[%emt 0:0:0]} 4. cxd5 {[%emt 0:0:0]} exd5 {[%emt 0:0:0]} 5. Bg5 {[%emt 0:0:0]} c6 {[%emt 0:0:0]} 6. e3 {[%emt 0:0:0]} Be7 {[%emt 0:0:0]} 7. Bd3 {[%emt 0:0:0]} Nbd7 {[%emt 0:0:0]} 8. Qc2 {[%emt 0:0:0]} Nh5 {[%emt 0:0:0]} 9. Bxe7 {[%emt 0:0:0]} Qxe7 {[%emt 0:0:0]} 10. O-O-O {[%emt 0:0:0]} Nb6 {[%emt 0:0:0]} 11. h3 {[%emt 0:0:0]} Be6 {[%emt 0:0:0]} 12. Nf3 {[%emt 0:0:0]} O-O-O {[%emt 0:0:0]} 13. Na4 {[%emt 0:2:41]} Nf6 {[%emt 0:1:35]} 14. Nxb6+ {[%emt 0:8:16]} axb6 {[%emt 0:0:10]} 15. Kb1 {[%emt 0:10:59]} Nd7 {[%emt 0:6:1]} 16. Rc1 {[%emt 0:3:8]} Kb8 {[%emt 0:0:45]} 17. Qa4 {[%emt 0:9:48]} Rc8 {[%emt 0:1:16]} 18. Rc3 {[%emt 0:9:34]} b5 {[%emt 0:0:15]} 19. Qa5 {[%emt 0:5:35]} Qd8 {[%emt 0:6:42]} 20. Qb4 {[%emt 0:10:0]} Qf8 {[%emt 0:0:6]} 21. Qa5 {[%emt 0:1:28]} Qd8 {[%emt 0:0:6]} 22. Qb4 {[%emt 0:0:5]} Nb6 {[%emt 0:3:13]} 23. b3 {[%emt 0:8:17]} f6 {[%emt 0:6:26]} 24. Rhc1 {[%emt 0:6:24]} g6 {[%emt 0:1:18]} 25. Nd2 {[%emt 0:7:27]} Qf8 {[%emt 0:6:33]} 26. Qa5 {[%emt 0:1:12]} Na8 {[%emt 0:0:6]} 27. b4 {[%emt 0:0:46]} b6 {[%emt 0:4:20]} 28. Qa3 {[%emt 0:0:9]} Qd6 {[%emt 0:0:22]} 29. R1c2 {[%emt 0:2:54]} Bd7 {[%emt 0:1:43]} 30. Qb3 {[%emt 0:1:21]} Nc7 {[%emt 0:0:46]} 31. a4 {[%emt 0:0:42]} bxa4 {[%emt 0:2:9]} 32. Qxa4 {[%emt 0:0:7]} Kb7 {[%emt 0:0:18]} 33. Qb3 {[%emt 0:1:28]} Qh2 {[%emt 0:7:52]} 34. b5 {[%emt 0:2:8]} cxb5 {[%emt 0:0:9]} 35. e4 {[%emt 0:4:53]} Qd6 {[%emt 0:2:25]} 36. exd5 {[%emt 0:0:42]} f5 {[%emt 0:0:7]} 37. Nf3 {[%emt 0:6:12]} Nxd5 {[%emt 0:1:28]} 38. Rxc8 {[%emt 0:0:4]} Rxc8 {[%emt 0:0:6]} 39. Rxc8 {[%emt 0:0:35]} Kxc8 {[%emt 0:1:9]} 40. Ne5 {[%emt 0:0:0]} b4 {[%emt 0:0:0]} 41. Nf7 {[%emt 0:0:0]} Qc6 {[%emt 0:0:0]} 42. Ne5 {[%emt 0:0:0]} Qa8 {[%emt 0:0:0]} 43. Bc4 {[%emt 0:0:0]} Nc3+ {[%emt 0:0:0]} 44. Kb2 {[%emt 0:0:0]} Na4+ {[%emt 0:0:0]} 45. Kc1 {[%emt 0:0:21]} Nc5 {[%emt 0:0:26]} 46. dxc5 {[%emt 0:1:34]} Qa1+ {[%emt 0:0:2]} 47. Kd2 {[%emt 0:0:19]} Qxe5 {[%emt 0:0:5]} 48. cxb6 {[%emt 0:8:48]} Qd4+ {[%emt 0:0:38]} 49. Ke2 {[%emt 0:0:18]} Qxb6 {[%emt 0:0:11]} 50. Qb2 {[%emt 0:3:11]} Qc5 {[%emt 0:1:12]} 51. Bd3 {[%emt 0:4:48]} Kc7 {[%emt 0:1:18]} 52. Qg7 {[%emt 0:2:13]} b3 {[%emt 0:0:35]} 53. Qxh7 {[%emt 0:0:39]} Qe5+ {[%emt 0:0:35]} 54. Kd2 {[%emt 0:0:40]} Qb2+ {[%emt 0:0:10]} 55. Ke3 {[%emt 0:1:12]} Qc1+ {[%emt 0:0:55]} 56. Kd4 {[%emt 0:0:29]} b2 {[%emt 0:4:46]} 57. Qxg6 {[%emt 0:0:7]} Qd2 {[%emt 0:1:1]} 58. Kc5 {[%emt 0:5:30]} Qc3+ {[%emt 0:0:49]} 59. Bc4 {[%emt 0:0:15]} Qe5+ {[%emt 0:0:6]} 60. Bd5 {[%emt 0:0:0]} b1=Q {[%emt 0:0:0]} 0-1

[Event "56th Biel Festival MTO 2023"]
[White "Sanchez Alvarez,Roberto Carlos"]
[Black "Wang,Chuqiao"]
[Site "Biel"]
[Round "1.23"]
[Annotator "ChessBase"]
[Result "1-0"]
[Date "2023.07.18"]
[WhiteElo "2444"]
[BlackElo "2161"]
[PlyCount "71"]
[TimeControl "60"]

1. Nf3 {[%emt 0:0:0]} d5 {[%emt 0:0:0]} 2. c4 {[%emt 0:0:0]} e6 {[%emt 0:0:0]} 3. e3 {[%emt 0:0:0]} Nf6 {[%emt 0:0:0]} 4. b3 {[%emt 0:0:0]} Be7 {[%emt 0:0:0]} 5. Bb2 {[%emt 0:0:0]} O-O {[%emt 0:0:0]} 6. Nc3 {[%emt 0:0:0]} b6 {[%emt 0:0:0]} 7. g3 {[%emt 0:1:14]} Bb7 {[%emt 0:0:0]} 8. Bg2 {[%emt 0:0:12]} Nbd7 {[%emt 0:0:0]} 9. O-O {[%emt 0:0:39]} c5 {[%emt 0:0:0]} 10. Qe2 {[%emt 0:1:4]} Rc8 {[%emt 0:0:0]} 11. Rac1 {[%emt 0:3:17]} Qc7 {[%emt 0:0:15]} 12. cxd5 {[%emt 0:9:7]} exd5 {[%emt 0:3:53]} 13. d4 {[%emt 0:1:54]} Qb8 {[%emt 0:1:8]} 14. dxc5 {[%emt 0:3:44]} bxc5 {[%emt 0:0:53]} 15. Rfd1 {[%emt 0:4:6]} Rfd8 {[%emt 0:3:1]} 16. Nh4 {[%emt 0:2:41]} Ne5 {[%emt 0:7:51]} 17. Nf5 {[%emt 0:14:56]} Bf8 {[%emt 0:0:34]} 18. f4 {[%emt 0:0:34]} Ng6 {[%emt 0:2:50]} 19. Na4 {[%emt 0:1:37]} Ne8 {[%emt 0:5:53]} 20. Ba3 {[%emt 0:10:4]} c4 {[%emt 0:10:25]} 21. Bxf8 {[%emt 0:2:48]} Kxf8 {[%emt 0:0:11]} 22. bxc4 {[%emt 0:4:29]} dxc4 {[%emt 0:1:40]} 23. Rb1 {[%emt 0:10:53]} Rxd1+ {[%emt 0:0:39]} 24. Qxd1 {[%emt 0:0:2]} Rc7 {[%emt 0:0:14]} 25. Nd6 {[%emt 0:1:39]} Rd7 {[%emt 0:0:53]} 26. Nc5 {[%emt 0:0:11]} Rd8 {[%emt 0:19:52]} 27. Ncxb7 {[%emt 0:3:18]} Rd7 {[%emt 0:6:25]} 28. Qc2 {[%emt 0:2:42]} Nxd6 {[%emt 0:3:3]} 29. Nc5 {[%emt 0:0:17]} Qc7 {[%emt 0:0:19]} 30. Nxd7+ {[%emt 0:0:14]} Qxd7 {[%emt 0:0:6]} 31. e4 {[%emt 0:3:45]} f6 {[%emt 0:0:30]} 32. Qc3 {[%emt 0:6:19]} Qc7 {[%emt 0:0:20]} 33. Qd4 {[%emt 0:0:25]} Ne7 {[%emt 0:0:18]} 34. a4 {[%emt 0:1:27]} Ke8 {[%emt 0:6:0]} 35. Kh1 {[%emt 0:2:7]} a5 {[%emt 0:1:2]} 36. Rc1 {[%emt 0:2:21]} 1-0

[Event "56th Biel Festival MTO 2023"]
[White "Foerster-Yialamas,Lucas"]
[Black "Weishaeutel,Moritz"]
[Site "Biel"]
[Round "1.24"]
[Annotator "ChessBase"]
[Result "1-0"]
[Date "2023.07.18"]
[WhiteElo "2157"]
[BlackElo "2442"]
[PlyCount "97"]
[TimeControl "60"]

1. e4 {[%emt 0:0:0]} c5 {[%emt 0:0:0]} 2. Nf3 {[%emt 0:0:0]} d6 {[%emt 0:0:0]} 3. d4 {[%emt 0:0:0]} cxd4 {[%emt 0:0:0]} 4. Nxd4 {[%emt 0:0:0]} Nf6 {[%emt 0:0:0]} 5. Nc3 {[%emt 0:0:0]} a6 {[%emt 0:0:0]} 6. f3 {[%emt 0:0:0]} e6 {[%emt 0:0:0]} 7. Be3 {[%emt 0:0:0]} b5 {[%emt 0:0:0]} 8. Qd2 {[%emt 0:0:0]} Nbd7 {[%emt 0:0:0]} 9. g4 {[%emt 0:0:0]} b4 {[%emt 0:0:0]} 10. Nce2 {[%emt 0:0:0]} h6 {[%emt 0:0:0]} 11. O-O-O {[%emt 0:0:0]} Qc7 {[%emt 0:0:0]} 12. h4 {[%emt 0:0:0]} d5 {[%emt 0:0:0]} 13. exd5 {[%emt 0:0:0]} Nxd5 {[%emt 0:0:0]} 14. Nf4 {[%emt 0:0:0]} Nxe3 {[%emt 0:7:30]} 15. Qxe3 {[%emt 0:0:0]} Qe5 {[%emt 0:0:10]} 16. Qxe5 {[%emt 0:0:0]} Nxe5 {[%emt 0:0:6]} 17. Bg2 {[%emt 0:1:12]} Nc4 {[%emt 0:8:59]} 18. Rhe1 {[%emt 0:7:30]} Be7 {[%emt 0:10:28]} 19. Nc6 {[%emt 0:0:47]} Bb7 {[%emt 0:6:28]} 20. Nxe7 {[%emt 0:2:17]} Kxe7 {[%emt 0:0:7]} 21. Nd5+ {[%emt 0:0:38]} Bxd5 {[%emt 0:1:20]} 22. Rxd5 {[%emt 0:0:2]} Nb6 {[%emt 0:6:56]} 23. Rd4 {[%emt 0:0:47]} a5 {[%emt 0:0:41]} 24. f4 {[%emt 0:3:33]} Rad8 {[%emt 0:0:34]} 25. Rde4 {[%emt 0:2:48]} Nd7 {[%emt 0:8:10]} 26. f5 {[%emt 0:1:25]} Nf6 {[%emt 0:5:33]} 27. Re5 {[%emt 0:1:40]} Nxg4 {[%emt 0:4:16]} 28. Rxa5 {[%emt 0:0:13]} Rd4 {[%emt 0:11:52]} 29. Ra6 {[%emt 0:1:37]} Rhd8 {[%emt 0:2:5]} 30. fxe6 {[%emt 0:1:14]} fxe6 {[%emt 0:0:9]} 31. Raxe6+ {[%emt 0:0:42]} Kf8 {[%emt 0:0:32]} 32. Bf3 {[%emt 0:2:39]} Nf6 {[%emt 0:0:26]} 33. Rd1 {[%emt 0:1:29]} h5 {[%emt 0:8:40]} 34. Ree1 {[%emt 0:2:42]} g6 {[%emt 0:2:21]} 35. c3 {[%emt 0:0:20]} Rxd1+ {[%emt 0:0:21]} 36. Rxd1 {[%emt 0:0:1]} Rc8 {[%emt 0:0:25]} 37. Kc2 {[%emt 0:0:3]} bxc3 {[%emt 0:1:13]} 38. bxc3 {[%emt 0:0:3]} Rc5 {[%emt 0:2:45]} 39. Rd4 {[%emt 0:3:0]} Kg7 {[%emt 0:3:54]} 40. a4 {[%emt 0:0:0]} Kh6 {[%emt 0:0:0]} 41. Kb3 {[%emt 0:0:0]} g5 {[%emt 0:0:0]} 42. Kb4 {[%emt 0:0:0]} Rf5 {[%emt 0:0:0]} 43. hxg5+ {[%emt 0:0:0]} Kxg5 {[%emt 0:0:0]} 44. Bc6 {[%emt 0:0:0]} Rf1 {[%emt 0:0:0]} 45. a5 {[%emt 0:0:0]} Ra1 {[%emt 0:0:0]} 46. Kb5 {[%emt 0:0:0]} h4 {[%emt 0:0:0]} 47. a6 {[%emt 0:0:0]} h3 {[%emt 0:0:0]} 48. Ra4 {[%emt 0:0:0]} Rb1+ {[%emt 0:0:0]} 49. Ka5 {[%emt 0:0:0]} 1-0

[Event "56th Biel Festival MTO 2023"]
[White "Materia,Marco"]
[Black "Ammar,Sedrani"]
[Site "Biel"]
[Round "1.25"]
[Annotator "ChessBase"]
[Result "1-0"]
[Date "2023.07.18"]
[WhiteElo "2436"]
[BlackElo "2154"]
[PlyCount "93"]
[TimeControl "60"]

1. d4 {[%emt 0:0:0]} d5 {[%emt 0:0:0]} 2. c4 {[%emt 0:0:0]} e6 {[%emt 0:0:0]} 3. Nf3 {[%emt 0:0:0]} Nf6 {[%emt 0:0:0]} 4. Nc3 {[%emt 0:0:0]} Be7 {[%emt 0:0:0]} 5. Bf4 {[%emt 0:0:0]} O-O {[%emt 0:0:0]} 6. e3 {[%emt 0:0:0]} dxc4 {[%emt 0:4:30]} 7. Bxc4 {[%emt 0:0:0]} a6 {[%emt 0:0:27]} 8. a4 {[%emt 0:10:26]} Bd6 {[%emt 0:20:49]} 9. Ne5 {[%emt 0:3:46]} Qe7 {[%emt 0:12:31]} 10. O-O {[%emt 0:2:35]} b6 {[%emt 0:7:21]} 11. Qf3 {[%emt 0:2:32]} Ra7 {[%emt 0:0:4]} 12. Qh3 {[%emt 0:12:46]} Bb7 {[%emt 0:6:6]} 13. Bg5 {[%emt 0:5:30]} Rd8 {[%emt 0:5:28]} 14. f4 {[%emt 0:2:31]} Nbd7 {[%emt 0:7:47]} 15. Nxf7 {[%emt 0:10:35]} Kxf7 {[%emt 0:0:55]} 16. f5 {[%emt 0:5:18]} Bd5 {[%emt 0:2:56]} 17. Nxd5 {[%emt 0:5:28]} exd5 {[%emt 0:0:3]} 18. Bxd5+ {[%emt 0:0:9]} Kf8 {[%emt 0:3:23]} 19. e4 {[%emt 0:2:9]} h6 {[%emt 0:6:15]} 20. Be6 {[%emt 0:5:53]} c5 {[%emt 0:7:40]} 21. e5 {[%emt 0:4:44]} Nxe5 {[%emt 0:0:36]} 22. dxe5 {[%emt 0:0:7]} Bxe5 {[%emt 0:0:2]} 23. Kh1 {[%emt 0:8:33]} Qc7 {[%emt 0:10:49]} 24. Rae1 {[%emt 0:2:29]} Raa8 {[%emt 0:0:29]} 25. Bxh6 {[%emt 0:2:42]} gxh6 {[%emt 0:2:51]} 26. Qxh6+ {[%emt 0:0:2]} Ke7 {[%emt 0:0:25]} 27. Qg7+ {[%emt 0:4:6]} Kd6 {[%emt 0:0:54]} 28. Qxc7+ {[%emt 0:0:54]} Kxc7 {[%emt 0:0:1]} 29. Rxe5 {[%emt 0:0:1]} Rd2 {[%emt 0:0:30]} 30. b3 {[%emt 0:2:23]} Rh8 {[%emt 0:0:0]} 31. h3 {[%emt 0:0:40]} Ng4 {[%emt 0:2:28]} 32. Ree1 {[%emt 0:0:15]} Nf2+ {[%emt 0:0:37]} 33. Kg1 {[%emt 0:0:35]} Nd3 {[%emt 0:0:26]} 34. Re4 {[%emt 0:0:41]} Kd6 {[%emt 0:0:31]} 35. f6 {[%emt 0:0:55]} Ne5 {[%emt 0:0:17]} 36. f7 {[%emt 0:1:7]} Rf8 {[%emt 0:0:3]} 37. Bc4 {[%emt 0:0:7]} b5 {[%emt 0:0:39]} 38. axb5 {[%emt 0:0:6]} axb5 {[%emt 0:0:2]} 39. Rf6+ {[%emt 0:0:19]} Ke7 {[%emt 0:1:20]} 40. Re6+ {[%emt 0:0:0]} Kxf7 {[%emt 0:0:0]} 41. R6xe5+ {[%emt 0:0:0]} bxc4 {[%emt 0:0:0]} 42. Rf4+ {[%emt 0:0:0]} Kg7 {[%emt 0:0:0]} 43. Rxf8 {[%emt 0:0:0]} Kxf8 {[%emt 0:0:0]} 44. bxc4 {[%emt 0:0:0]} Rd4 {[%emt 0:0:0]} 45. Rxc5 {[%emt 0:0:0]} Ke7 {[%emt 0:0:0]} 46. Kf2 {[%emt 0:0:0]} Kd6 {[%emt 0:0:0]} 47. Rd5+ {[%emt 0:0:0]} 1-0

[Event "56th Biel Festival MTO 2023"]
[White "Ludwig,Peter"]
[Black "Licznerski,Lukasz"]
[Site "Biel"]
[Round "1.26"]
[Annotator "ChessBase"]
[Result "0-1"]
[Date "2023.07.18"]
[WhiteElo "2147"]
[BlackElo "2430"]
[PlyCount "108"]
[TimeControl "60"]

1. Nf3 {[%emt 0:0:0]} d5 {[%emt 0:0:0]} 2. c4 {[%emt 0:0:0]} d4 {[%emt 0:0:0]} 3. g3 {[%emt 0:0:0]} Nc6 {[%emt 0:0:0]} 4. Bg2 {[%emt 0:0:0]} e5 {[%emt 0:1:57]} 5. d3 {[%emt 0:0:0]} Bc5 {[%emt 0:5:28]} 6. O-O {[%emt 0:0:0]} a5 {[%emt 0:0:30]} 7. e3 {[%emt 0:0:0]} dxe3 {[%emt 0:12:24]} 8. Bxe3 {[%emt 0:0:1]} Bxe3 {[%emt 0:0:6]} 9. fxe3 {[%emt 0:0:5]} e4 {[%emt 0:0:3]} 10. dxe4 {[%emt 0:6:53]} Qxd1 {[%emt 0:1:28]} 11. Rxd1 {[%emt 0:0:5]} Bg4 {[%emt 0:0:12]} 12. Nc3 {[%emt 0:1:59]} Bxf3 {[%emt 0:0:9]} 13. Bxf3 {[%emt 0:0:4]} Ne5 {[%emt 0:0:4]} 14. Be2 {[%emt 0:0:21]} c6 {[%emt 0:0:27]} 15. c5 {[%emt 0:18:26]} Nf6 {[%emt 0:2:29]} 16. Rd4 {[%emt 0:3:0]} h5 {[%emt 0:7:6]} 17. h3 {[%emt 0:2:1]} h4 {[%emt 0:1:3]} 18. g4 {[%emt 0:0:13]} Nh7 {[%emt 0:0:7]} 19. Kg2 {[%emt 0:15:23]} Ng5 {[%emt 0:0:4]} 20. Na4 {[%emt 0:0:18]} Ne6 {[%emt 0:1:27]} 21. Rd6 {[%emt 0:0:45]} Rd8 {[%emt 0:7:37]} 22. Rxd8+ {[%emt 0:12:31]} Kxd8 {[%emt 0:0:54]} 23. a3 {[%emt 0:1:28]} Ke7 {[%emt 0:11:39]} 24. Rd1 {[%emt 0:1:29]} Nd7 {[%emt 0:14:29]} 25. b4 {[%emt 0:1:29]} axb4 {[%emt 0:0:5]} 26. axb4 {[%emt 0:0:7]} Ng5 {[%emt 0:0:3]} 27. Rd4 {[%emt 0:1:55]} Nf6 {[%emt 0:3:43]} 28. Nb6 {[%emt 0:10:29]} Ngxe4 {[%emt 0:0:34]} 29. Bd3 {[%emt 0:0:41]} Rd8 {[%emt 0:18:54]} 30. Rxe4+ {[%emt 0:4:14]} Nxe4 {[%emt 0:0:2]} 31. Bxe4 {[%emt 0:0:5]} Rd2+ {[%emt 0:0:7]} 32. Kf3 {[%emt 0:0:3]} Rb2 {[%emt 0:3:56]} 33. Nc8+ {[%emt 0:5:7]} Kf6 {[%emt 0:0:10]} 34. Nd6 {[%emt 0:0:14]} Rxb4 {[%emt 0:0:7]} 35. Bf5 {[%emt 0:11:9]} g6 {[%emt 0:2:22]} 36. Bc8 {[%emt 0:0:42]} b6 {[%emt 0:0:3]} 37. Bd7 {[%emt 0:2:55]} bxc5 {[%emt 0:1:9]} 38. Bxc6 {[%emt 0:0:12]} Rb6 {[%emt 0:5:27]} 39. Ne4+ {[%emt 0:0:15]} Ke5 {[%emt 0:0:2]} 40. Be8 {[%emt 0:0:0]} c4 {[%emt 0:0:0]} 41. Nc3 {[%emt 0:4:46]} Rb3 {[%emt 0:0:19]} 42. Ne2 {[%emt 0:0:30]} Rb8 {[%emt 0:2:44]} 43. Bc6 {[%emt 0:3:57]} g5 {[%emt 0:5:27]} 44. Be4 {[%emt 0:1:56]} Kd6 {[%emt 0:2:46]} 45. Nd4 {[%emt 0:1:55]} Kc5 {[%emt 0:0:49]} 46. Bc2 {[%emt 0:1:17]} Ra8 {[%emt 0:3:30]} 47. Ke2 {[%emt 0:2:37]} Kb4 {[%emt 0:3:16]} 48. Kd2 {[%emt 0:1:22]} Ra1 {[%emt 0:3:44]} 49. Nc6+ {[%emt 0:0:33]} Kb5 {[%emt 0:2:31]} 50. Ne5 {[%emt 0:0:45]} f6 {[%emt 0:2:9]} 51. Nd7 {[%emt 0:1:20]} Rh1 {[%emt 0:1:19]} 52. Nxf6 {[%emt 0:2:12]} Rxh3 {[%emt 0:0:2]} 53. e4 {[%emt 0:3:52]} Rh2+ {[%emt 0:3:30]} 54. Kc3 {[%emt 0:0:31]} h3 {[%emt 0:0:28]} 0-1

[Event "56th Biel Festival MTO 2023"]
[White "Rohith Krishna S"]
[Black "Jaksland,Tim"]
[Site "Biel"]
[Round "1.27"]
[Annotator "ChessBase"]
[Result "1-0"]
[Date "2023.07.18"]
[WhiteElo "2429"]
[BlackElo "2136"]
[PlyCount "43"]
[TimeControl "60"]

1. d4 {[%emt 0:0:0]} Nf6 {[%emt 0:0:0]} 2. c4 {[%emt 0:0:0]} c5 {[%emt 0:0:0]} 3. d5 {[%emt 0:0:0]} b5 {[%emt 0:0:0]} 4. cxb5 {[%emt 0:0:0]} a6 {[%emt 0:0:0]} 5. bxa6 {[%emt 0:0:0]} e6 {[%emt 0:0:0]} 6. Nc3 {[%emt 0:0:0]} exd5 {[%emt 0:0:0]} 7. Nxd5 {[%emt 0:0:0]} Be7 {[%emt 0:0:0]} 8. e4 {[%emt 0:17:53]} Nxe4 {[%emt 0:13:2]} 9. Qg4 {[%emt 0:8:53]} Ng5 {[%emt 0:33:6]} 10. Bxg5 {[%emt 0:4:22]} Bxg5 {[%emt 0:0:10]} 11. Nf3 {[%emt 0:0:41]} Bh6 {[%emt 0:12:13]} 12. Qe4+ {[%emt 0:0:15]} Kf8 {[%emt 0:0:3]} 13. Bc4 {[%emt 0:1:1]} Bxa6 {[%emt 0:17:50]} 14. O-O {[%emt 0:4:11]} Nc6 {[%emt 0:1:41]} 15. Rfe1 {[%emt 0:4:40]} Bxc4 {[%emt 0:3:38]} 16. Qxc4 {[%emt 0:0:16]} Qa5 {[%emt 0:0:4]} 17. Rad1 {[%emt 0:12:17]} Re8 {[%emt 0:4:12]} 18. Rxe8+ {[%emt 0:9:4]} Kxe8 {[%emt 0:0:2]} 19. Qe4+ {[%emt 0:1:48]} Kf8 {[%emt 0:11:3]} 20. Ne5 {[%emt 0:0:14]} Qd8 {[%emt 0:1:13]} 21. Nb6 {[%emt 0:2:4]} Nxe5 {[%emt 0:1:36]} 22. Qxe5 {[%emt 0:0:12]} 1-0